fUSD/lending_fUSD_20240615
["ID","MTS","AMOUNT","RATE_DAILY","PERIOD"]
[329552100,1718429493579,-362.26672334,0.00022465,3]
[329552101,1718429493594,-214.60774218,0.00022465,3]
[329552102,1718429493608,-66.45225782,0.00022465,3]
[329552103,1718429493620,-500.0,0.00022465,3]
[329552104,1718429493631,-4397.02,0.00022465,3]
[329552105,1718429493644,-1094.24,0.00022465,3]
[329552106,1718429493684,-500.0,0.00022465,3]
[329552107,1718429493696,-500.0,0.00022465,3]
[329552108,1718429493708,-500.0,0.00022465,3]
[329552109,1718429493752,-500.0,0.00022465,3]
[329552110,1718429493768,-250.0,0.00022465,3]
[329552111,1718429493779,-500.0,0.00022465,3]
[329552112,1718429493803,-500.0,0.00022465,3]
[329552113,1718429493815,-500.0,0.00022465,3]
[329552114,1718429493828,-500.0,0.00022465,3]
[329552115,1718429493850,-500.0,0.00022465,3]
[329552116,1718429493869,-500.0,0.00022465,3]
[329552117,1718429493881,-579.57134313,0.00022465,3]
[329552118,1718429493897,-500.0,0.00022465,3]
[329552119,1718429493908,-500.0,0.00022465,3]
[329552120,1718429493925,-535.07665078,0.00022465,3]
[329552121,1718429493941,-500.0,0.00022465,3]
[329552122,1718429493954,-1675.97,0.00022465,3]
[329552123,1718429493980,-500.0,0.00022465,3]
[329552124,1718429493992,-180.62113558,0.00022465,3]
[329552125,1718429494356,-112.44886442,0.00022465,3]
[329552126,1718429494374,-500.0,0.00022465,3]
[329552127,1718429494411,-770.29,0.00022465,3]
[329552128,1718429494448,-223.91956282,0.00022465,3]
[329552129,1718429494461,-500.0,0.00022465,3]
[329552130,1718429494472,-500.0,0.00022465,3]
[329552131,1718429494500,-500.0,0.00022465,3]
[329552132,1718429494541,-548.45866242,0.00022465,3]
[329552133,1718429494565,-500.0,0.00022465,3]
[329552134,1718429494583,-500.0,0.00022465,3]
[329552135,1718429494593,-500.0,0.00022465,3]
[329552136,1718429494604,-500.0,0.00022465,3]
[329552137,1718429494644,-543.51,0.00022465,3]
[329552138,1718429494669,-500.0,0.00022465,3]
[329552139,1718429494683,-500.0,0.00022465,3]
[329552140,1718429494712,-935.11,0.00022465,3]
[329552141,1718429494724,-1075.94,0.00022465,3]
[329552142,1718429494745,-793.12,0.00022465,3]
[329552143,1718429494757,-500.0,0.00022465,3]
[329552144,1718429494780,-500.0,0.00022465,3]
[329552145,1718429494797,-819.75,0.00022465,3]
[329552146,1718429494810,-500.0,0.00022465,3]
[329552147,1718429494822,-500.0,0.00022465,3]
[329552148,1718429494848,-500.0,0.00022465,3]
[329552149,1718429494880,-500.0,0.00022465,3]
[329552150,1718429494896,-500.0,0.00022465,3]
[329552151,1718429494912,-1078.95,0.00022465,3]
[329552152,1718429494924,-519.13299742,0.00022465,3]
[329552153,1718429494945,-543.7,0.00022465,3]
[329552154,1718429494963,-272.32347792,0.00022465,3]
[329552155,1718429494978,-227.67652208,0.00022465,3]
[329552156,1718429495001,-500.0,0.00022465,3]
[329552157,1718429495021,-500.0,0.00022465,3]
[329552158,1718429495053,-241.11872445,0.00022465,3]
[329552159,1718429495072,-258.88127555,0.00022465,3]
[329552160,1718429495103,-500.0,0.00022465,3]
[329552161,1718429495115,-500.0,0.00022465,3]
[329552162,1718429495129,-500.0,0.00022465,3]
[329552163,1718429495144,-500.0,0.00022465,3]
[329552164,1718429495157,-500.0,0.00022465,3]
[329552165,1718429495196,-441.33902178,0.00022465,3]
[329552166,1718429495230,-58.66097822,0.00022465,3]
[329552167,1718429495242,-500.0,0.00022465,3]
[329552168,1718429495257,-500.0,0.00022465,3]
[329552169,1718429495276,-500.0,0.00022465,3]
[329552170,1718429495300,-500.0,0.00022738,3]
[329552171,1718429495327,-465.08094942,0.00022738,3]
[329552172,1718429495343,-34.91905058,0.00022738,3]
[329552173,1718429495375,-500.0,0.00022739,3]
[329552174,1718429495386,-500.0,0.00022739,3]
[329552175,1718429495423,-119.36790247,0.00022739,3]
[329552176,1718429495460,-380.63209753,0.00022739,3]
[329552177,1718429495487,-500.0,0.00022739,3]
[329552178,1718429495551,-500.0,0.00022739,3]
[329552179,1718429495564,-500.0,0.00022739,3]
[329552180,1718429495595,-500.0,0.00022739,3]
[329552181,1718429495610,-500.0,0.00022739,3]
[329552182,1718429495624,-500.0,0.00022739,3]
[329552183,1718429495637,-500.0,0.00022739,3]
[329552184,1718429495651,-500.0,0.00022739,3]
[329552185,1718429495665,-500.0,0.00022739,3]
[329552186,1718429495685,-500.0,0.00022739,3]
[329552187,1718429495696,-500.0,0.00022739,3]
[329552188,1718429495709,-500.0,0.00022739,3]
[329552189,1718429495722,-500.0,0.00022739,3]
[329552190,1718429495733,-471.44270298,0.00022739,3]
[329552191,1718429495745,-610.46539284,0.00022739,3]
[329552192,1718429495756,-331.65296036,0.00022739,3]
[329552193,1718429495766,-500.0,0.00022739,3]
[329552194,1718429495778,-511.72551265,0.00022739,3]
[329552195,1718429495796,-530.34,0.00022739,3]
[329552196,1718429495809,-328.0,0.00022739,3]
[329552197,1718429495819,-500.0,0.00022739,3]
[329552198,1718429495831,-500.0,0.00022739,3]
[329552199,1718429495847,-842.43,0.00022739,3]
[329552200,1718429495859,-500.0,0.00022739,3]
[329552201,1718429495871,-500.0,0.00022739,3]
[329552202,1718429495887,-500.0,0.00022739,3]
[329552203,1718429495927,-500.0,0.00022739,3]
[329552204,1718429495938,-500.0,0.00022739,3]
[329552205,1718429495955,-500.0,0.00022739,3]
[329552206,1718429495970,-500.0,0.00022739,3]
[329552207,1718429495984,-500.0,0.00022739,3]
[329552208,1718429495995,-500.0,0.00022739,3]
[329552209,1718429496006,-500.0,0.00022739,3]
[329552210,1718429496018,-524.2471546,0.00022739,3]
[329552211,1718429496028,-500.0,0.00022739,3]
[329552212,1718429496052,-500.0,0.00022739,3]
[329552213,1718429496065,-500.0,0.00022739,3]
[329552214,1718429496080,-500.0,0.00022739,3]
[329552215,1718429496090,-500.0,0.00022739,3]
[329552216,1718429496100,-500.0,0.00022739,3]
[329552217,1718429496111,-500.0,0.00022739,3]
[329552218,1718429496128,-500.0,0.00022739,3]
[329552219,1718429496173,-500.0,0.00022739,3]
[329552220,1718429496190,-500.0,0.00022739,3]
[329552221,1718429496207,-500.0,0.00022739,3]
[329552222,1718429496218,-500.0,0.00022739,3]
[329552223,1718429496229,-289.81356109,0.00022739,3]
[329552224,1718429496241,-621.60137604,0.00022739,3]
[329552225,1718429496251,-500.0,0.00022739,3]
[329552226,1718429496262,-500.0,0.00022739,3]
[329552227,1718429496278,-512.91177932,0.00022739,3]
[329552228,1718429496289,-500.0,0.00022739,3]
[329552229,1718429496328,-426.90744541,0.00022739,3]
[329552230,1718429496351,-514.01170877,0.00022739,3]
[329552231,1718429496363,-500.0,0.00022739,3]
[329552232,1718429496388,-500.0,0.00022739,3]
[329552233,1718429496400,-500.0,0.00022739,3]
[329552234,1718429496414,-500.0,0.00022739,3]
[329552235,1718429496428,-500.0,0.00022739,3]
[329552236,1718429496439,-500.0,0.00022739,3]
[329552237,1718429496459,-342.14598626,0.00022739,3]
[329552238,1718429496475,-157.85401374,0.00022739,3]
[329552239,1718429496488,-500.0,0.00022739,3]
[329552240,1718429496509,-345.54846122,0.00022739,3]
[329552241,1718429496724,-500.0,0.00021917,2]
[329552242,1718429496764,-123.97601203,0.00022739,3]
[329552243,1718429496779,-500.0,0.00022739,3]
[329552244,1718429496805,-500.0,0.00022739,3]
[329552245,1718429496819,-500.0,0.00022739,3]
[329552246,1718429496840,-500.0,0.00022739,3]
[329552247,1718429496869,-500.0,0.00022739,3]
[329552248,1718429496881,-500.0,0.00022739,3]
[329552249,1718429496902,-574.34,0.00022739,3]
[329552250,1718429496920,-500.0,0.00022739,3]
[329552251,1718429496935,-500.0,0.00022739,3]
[329552252,1718429496968,-500.0,0.00022739,3]
[329552253,1718429497000,-323.20079792,0.00022739,3]
[329552254,1718429497015,-201.42464639,0.00022739,3]
[329552255,1718429497060,-500.0,0.00022739,3]
[329552256,1718429497070,-500.0,0.00022739,3]
[329552257,1718429497084,-500.0,0.00022739,3]
[329552258,1718429497101,-182.22637361,0.00022739,3]
[329552259,1718429501010,262.96555812,0.00011771,2]
[329552260,1718429577922,150.41,0.00024329,30]
[329552261,1718429624498,14159.28333428,0.00014,2]
[329552262,1718429624558,739770.46305939,0.00014,2]
[329552263,1718429644925,24942.87092926,0.000118,2]
[329552264,1718429651338,259.1,0.00011,2]
[329552279,1718430135723,150.41,0.00024329,30]
[329552312,1718430432447,-300.66385212,0.00014997,2]
[329552313,1718430439136,-163.21,0.00014871,2]
[329552314,1718430439174,-525.13242523,0.00014997,2]
[329552326,1718430521474,2553.83967559,0.00011248,2]
[329552371,1718430633409,-1353.88104019,0.00014996,2]
[329552372,1718430634636,-323.84316017,0.00014996,2]
[329552373,1718430634658,-873.0,0.00014996,2]
[329552374,1718430634684,-2930.36539839,0.00014996,2]
[329552375,1718430634699,-365.75229099,0.00014998,2]
[329552376,1718430634718,-674.14935615,0.00014998,2]
[329552377,1718430634728,-4650.16295447,0.00015,2]
[329552378,1718430635061,-97364.34798304,0.00015,2]
[329552379,1718430635080,-758.46063196,0.00015,2]
[329552380,1718430635449,-1671.32115809,0.00015,2]
[329552381,1718430635472,-500.0,0.00015,2]
[329552384,1718430639365,-22819.80592014,0.00015,2]
[329552385,1718430639385,-474.49,0.00016695,2]
[329552386,1718430639399,-285.025,0.00017159,2]
[329552387,1718430639410,-150.99,0.00017808,2]
[329552388,1718430639441,-3617.0,0.00018,2]
[329552389,1718430639480,-839.0,0.00018,2]
[329552390,1718430639493,-234.35,0.00018619,2]
[329552391,1718430639506,-200.0,0.00018624,2]
[329552392,1718430639525,-4485.96,0.00018624,2]
[329552393,1718430639545,-448.02,0.00018686,2]
[329552394,1718430639556,-150.0,0.00018712,2]
[329552395,1718430639567,-250.0,0.0001872,2]
[329552396,1718430639585,-5584.17,0.00018744,2]
[329552397,1718430639602,-191.77923471,0.0001875,2]
[329552398,1718430639631,-58.22076529,0.0001875,2]
[329552399,1718430639651,-773.64,0.00018801,2]
[329552400,1718430639662,-474.49,0.00018959,2]
[329552401,1718430639699,-2492.77265971,0.00018993,2]
[329552402,1718430639735,-1152.46734029,0.00018993,2]
[329552403,1718430639752,-729.27402728,0.00019,2]
[329552404,1718430639773,-495.33,0.0001906,2]
[329552405,1718430639785,-495.33,0.00019113,2]
[329552406,1718430639797,-495.33,0.00019165,2]
[329552407,1718430639808,-495.33,0.00019217,2]
[329552408,1718430639834,-1070.77,0.00019223,2]
[329552409,1718430639845,-495.33,0.00019269,2]
[329552410,1718430639867,-9349.07372043,0.00019273,2]
[329552411,1718430639893,-8208.53520196,0.00019273,2]
[329552412,1718430640210,-2258.54107761,0.00019273,2]
[329552413,1718430640276,-320.63,0.00019273,2]
[329552414,1718430640291,-220.12894229,0.00019322,2]
[329552415,1718430640341,-275.20105771,0.00019322,2]
[329552416,1718430640352,-825.69,0.00019332,2]
[329552417,1718430640395,-495.33,0.00019374,2]
[329552418,1718430640620,-327.87733332,0.00019426,2]
[329552419,1718430640668,-167.45266668,0.00019426,2]
[329552420,1718430640679,-495.33,0.00019479,2]
[329552421,1718430640705,-445.1979883,0.000195,2]
[329552422,1718430640724,-303.02301809,0.000195,2]
[329552423,1718430640745,-495.33,0.00019531,2]
[329552424,1718430640768,-495.33,0.00019583,2]
[329552425,1718430640799,-205.29,0.00019598,2]
[329552426,1718430640828,-495.33,0.00019635,2]
[329552427,1718430640848,-495.33,0.00019688,2]
[329552428,1718430640869,-427.55031517,0.00019724,2]
[329552429,1718430640885,-210.40667947,0.0001974,2]
[329552430,1718430640912,-284.92332053,0.0001974,2]
[329552431,1718430640938,-495.33,0.00019792,2]
[329552432,1718430640970,-495.33,0.00019844,2]
[329552433,1718430641004,-359.28952703,0.00019897,2]
[329552434,1718430641216,-136.04047297,0.00019897,2]
[329552435,1718430641255,-495.33,0.00019949,2]
[329552436,1718430641296,-495.33,0.00020001,2]
[329552437,1718430641342,-124.63760267,0.00020035,2]
[329552438,1718430641360,-25.36239733,0.00020035,2]
[329552439,1718430641381,-495.33,0.00020054,2]
[329552442,1718430641418,-226.79813277,0.000201,2]
[329552444,1718430641440,-153.5,0.00020184,2]
[329552446,1718430641464,-192.0,0.00020202,2]
[329552448,1718430641485,-1852.91762324,0.0002078,2]
[329552449,1718430641499,-1193.03317676,0.0002078,2]
[329552450,1718430641540,-3471.3594,0.0002078,2]
[329552451,1718430641551,-13.53640294,0.00020873,2]
[329552458,1718430643510,-139.96359706,0.00020873,2]
[329552459,1718430643522,-3462.77612394,0.0002088,2]
[329552463,1718430644829,-1079.31918,0.0002088,2]
[329552464,1718430644878,-34219.48254073,0.0002088,2]
[329552465,1718430644920,-340.34806041,0.0002088,2]
[329552467,1718430645265,-636.73203482,0.0002088,2]
[329552468,1718430646003,-666.04174078,0.0002088,2]
[329552469,1718430646034,-2766.3017478,0.0002088,2]
[329552470,1718430646645,-1130.9290057,0.0002088,2]
[329552471,1718430646664,-728.18499988,0.0002088,2]
[329552472,1718430646679,-529.735,0.0002088,2]
[329552496,1718430647911,-90.75682912,0.0002088,2]
[329552498,1718430647930,-474.49,0.00021223,2]
[329552499,1718430647944,-1380.96084808,0.00021278,2]
[329552502,1718430647984,-2402.98445192,0.00021278,2]
[329552504,1718430648018,-103.32728995,0.00021378,2]
[329552525,1718430648387,-676.28,0.00021378,2]
[329552560,1718430649113,-534.79419597,0.00021378,2]
[329552562,1718430649152,-308.25,0.00021378,2]
[329552575,1718430649560,-344.47983131,0.00021378,2]
[329552649,1718430807121,150.41,0.00024329,30]
[329552663,1718431356434,150.41,0.00024329,30]
[329552664,1718431449380,-163.21,0.00015654,2]
[329552665,1718431459646,-1079.54456918,0.00015632,2]
[329552666,1718431459760,-1091.32463082,0.00015654,2]
[329552667,1718431499261,-8135.87148376,0.00015632,2]
[329552668,1718431499295,-1868.45131018,0.00015654,2]
[329552669,1718431499340,-300.0,0.00015732,2]
[329552670,1718431499376,-2170.8692,0.00015933,2]
[329552671,1718431499428,-163.21,0.00016663,2]
[329552672,1718431499470,-420.0,0.00017205,2]
[329552673,1718431499543,-2554.91871386,0.00018247,2]
[329552674,1718431499588,-244.39,0.00018247,2]
[329552675,1718431499658,-499.99,0.00018247,2]
[329552676,1718431499690,-403.31,0.00018425,2]
[329552677,1718431499757,-587.0,0.00018816,2]
[329552678,1718431499900,-696.33,0.00020132,2]
[329552679,1718431501393,300.0,0.00015653,2]
[329552680,1718431502309,420.0,0.0001712,2]
[329552681,1718431503092,587.0,0.00018724,2]
[329552682,1718431513954,403.35504439,0.00011741,2]
[329552683,1718431561493,300.0,0.00019725,2]
[329552684,1718431642881,-155.03145599,0.00020584,2]
[329552685,1718431654391,945.30424781,0.00017259,2]
[329552686,1718431772583,-8427.64214039,0.00017258,2]
[329552687,1718431772629,-300.0,0.00017258,2]
[329552688,1718431772660,-5396.84360143,0.00017259,2]
[329552695,1718431833968,-439.20570663,0.00017259,2]
[329552696,1718431834009,-2446.69214439,0.00017259,2]
[329552697,1718431834044,-827.25071467,0.00017259,2]
[329552698,1718431834076,-150.0,0.00017259,2]
[329552699,1718431834093,-171.8276181,0.00017259,2]
[329552700,1718431834118,-430.17,0.00018611,2]
[329552701,1718431834136,-463.88,0.0002053,2]
[329552702,1718431834155,-224.01,0.00020579,2]
[329552703,1718431834200,-94.96854401,0.00020584,2]
[329552704,1718431834238,-250.0,0.0002066,2]
[329552705,1718431834280,-77.30731879,0.00020875,2]
[329552706,1718431834781,-293.43812873,0.00020875,2]
[329552707,1718431834804,-59.42455248,0.00020875,2]
[329552708,1718431834815,-465.86578839,0.00020876,2]
[329552709,1718431834847,-153.6,0.00020905,2]
[329552710,1718431834868,-1250.0,0.00021,2]
[329552711,1718431834883,-242.23622098,0.000212,2]
[329552712,1718431834900,-143.46308718,0.00021278,2]
[329552713,1718431835193,-68.31391282,0.00021278,2]
[329552714,1718431835205,-219.58085025,0.00021302,2]
[329552715,1718431835229,-207.60827368,0.00021302,2]
[329552716,1718431835250,-1000.0,0.00021371,2]
[329552717,1718431835265,-549.49683916,0.00021375,2]
[329552718,1718431835288,-1625.93576349,0.00021375,2]
[329552719,1718431835301,-7547.14582523,0.00021375,2]
[329552720,1718431835313,-155.0,0.00021375,2]
[329552721,1718431835341,-155.0,0.00021375,2]
[329552722,1718431835354,-10543.45367167,0.00021375,2]
[329552723,1718431835372,-245.0600648,0.00021375,2]
[329552732,1718431840519,-6637.10272302,0.00021375,2]
[329552741,1718431844270,-884.93011842,0.00021375,2]
[329552743,1718431844301,-654.55679658,0.00021375,2]
[329552744,1718431844320,-155.03145599,0.00021376,2]
[329552745,1718431844353,-785.40674743,0.00021376,2]
[329552759,1718431851102,-1301.9183313,0.00021375,2]
[329552760,1718431851121,-4800.72226522,0.00021376,2]
[329552761,1718431851132,-3825.60004292,0.00021377,2]
[329552762,1718431851160,-65759.50752565,0.00021377,2]
[329552763,1718431851171,-1674.28582,0.00021378,2]
[329552764,1718431851196,-151.0,0.00021518,2]
[329552765,1718431851220,-520.26,0.00021807,3]
[329552766,1718431851235,-219.8,0.00021808,2]
[329552767,1718431851253,-9279.1516,0.00021817,2]
[329552768,1718431851269,-83839.6811,0.00021817,2]
[329552769,1718431851279,-572.04626626,0.00021817,2]
[329552770,1718431851300,-328.92490908,0.00021817,2]
[329552771,1718431851316,-1187.56453147,0.00021849,2]
[329552772,1718431851335,-176.75608764,0.00021907,2]
[329552773,1718431851348,-1393.33701124,0.00021915,2]
[329552774,1718431851363,-289.32903108,0.00021916,2]
[329552775,1718431851375,-31099.26461535,0.00021916,2]
[329552776,1718431851390,-500.0,0.00021917,2]
[329552777,1718431851403,-500.48789997,0.00021917,2]
[329552778,1718431851428,-516.27826501,0.00021917,2]
[329552779,1718431851453,-390.58388383,0.00021917,2]
[329552780,1718431851467,-500.0,0.00021917,2]
[329552781,1718431851488,-441.17266013,0.00021917,2]
[329552782,1718431851509,-496.89188862,0.00021917,2]
[329552783,1718431851519,-497.15772193,0.00021917,2]
[329552784,1718431851530,-500.0,0.00021917,2]
[329552785,1718431851547,-165.30806224,0.00021917,2]
[329552786,1718431851558,-499.77487537,0.00021917,2]
[329552787,1718431851569,-822.4,0.00021917,2]
[329552788,1718431851581,-521.61254997,0.00021917,2]
[329552789,1718431851594,-500.0,0.00021917,2]
[329552790,1718431851606,-407.41424295,0.00021917,2]
[329552791,1718431851630,-500.0,0.00021917,2]
[329552792,1718431851657,-500.0,0.00021917,2]
[329552793,1718431851674,-500.0,0.00021917,2]
[329552794,1718431851694,-611.13774051,0.00021917,2]
[329552795,1718431851722,-500.0,0.00021917,2]
[329552796,1718431851765,-500.0,0.00021917,2]
[329552797,1718431851779,-500.0,0.00021917,2]
[329552798,1718431851791,-500.0,0.00021917,2]
[329552799,1718431851812,-500.0,0.00021917,2]
[329552800,1718431851840,-500.0,0.00021917,2]
[329552801,1718431851856,-500.0,0.00021917,2]
[329552802,1718431851868,-500.0,0.00021917,2]
[329552803,1718431851896,-500.0,0.00021917,2]
[329552804,1718431851913,-506.57879303,0.00021917,2]
[329552805,1718431851927,-500.0,0.00021917,2]
[329552806,1718431851952,-600.79283942,0.00021917,2]
[329552807,1718431851983,-562.95969568,0.00021917,2]
[329552808,1718431851998,-508.94900339,0.00021917,2]
[329552809,1718431852024,-604.98874371,0.00021917,2]
[329552810,1718431852047,-540.10934504,0.00021917,2]
[329552811,1718431852061,-500.0,0.00021917,2]
[329552812,1718431852079,-500.0,0.00021917,2]
[329552813,1718431852098,-500.0,0.00021917,2]
[329552814,1718431852118,-500.0,0.00021917,2]
[329552815,1718431852136,-500.0,0.00021917,2]
[329552816,1718431852146,-500.0,0.00021917,2]
[329552818,1718431852163,-500.0,0.00021917,2]
[329552819,1718431852174,-500.0,0.00021917,2]
[329552820,1718431852185,-500.0,0.00021917,2]
[329552821,1718431852197,-500.0,0.00021917,2]
[329552822,1718431852209,-500.0,0.00021917,2]
[329552823,1718431852222,-500.0,0.00021917,2]
[329552824,1718431852238,-500.0,0.00021917,2]
[329552825,1718431852293,-500.0,0.00021917,2]
[329552826,1718431852333,-525.0890963,0.00021917,2]
[329552827,1718431852375,-565.47,0.00021917,2]
[329552828,1718431852395,-500.0,0.00021917,2]
[329552829,1718431852412,-500.0,0.00021917,2]
[329552830,1718431852429,-500.0,0.00021917,2]
[329552831,1718431852442,-174.15758717,0.00021917,2]
[329552832,1718431852470,-500.0,0.00021917,2]
[329552834,1718431852530,-500.0,0.00021917,2]
[329552835,1718431852548,-511.91120738,0.00021917,2]
[329552836,1718431852568,-602.5,0.00021917,2]
[329552837,1718431852580,-593.12,0.00021917,2]
[329552838,1718431852600,-500.0,0.00021917,2]
[329552839,1718431852615,-500.0,0.00021917,2]
[329552840,1718431852632,-500.0,0.00021917,2]
[329552842,1718431852680,-261.98502447,0.00021917,2]
[329552845,1718431852711,-500.0,0.00021917,2]
[329552847,1718431852747,-500.0,0.00021917,2]
[329552850,1718431852765,-500.0,0.00021917,2]
[329552852,1718431852792,-501.88274338,0.00021917,2]
[329552854,1718431852829,-500.0,0.00021917,2]
[329552856,1718431852857,-500.0,0.00021917,2]
[329552859,1718431852882,-500.0,0.00021917,2]
[329552861,1718431852914,-502.33031488,0.00021917,2]
[329552863,1718431852937,-500.0,0.00021917,2]
[329552865,1718431852956,-500.0,0.00021917,2]
[329552867,1718431852982,-500.0,0.00021917,2]
[329552869,1718431852997,-500.0,0.00021917,2]
[329552871,1718431853012,-500.0,0.00021917,2]
[329552873,1718431853040,-500.0,0.00021917,2]
[329552875,1718431853052,-500.0,0.00021917,2]
[329552877,1718431853064,-500.0,0.00021917,2]
[329552879,1718431853083,-502.71166169,0.00021917,2]
[329552881,1718431853102,-500.0,0.00021917,2]
[329552883,1718431853113,-500.0,0.00021917,2]
[329552885,1718431853125,-500.0,0.00021917,2]
[329552888,1718431853138,-500.0,0.00021917,2]
[329552890,1718431853150,-502.96898146,0.00021917,2]
[329552891,1718431853161,-507.57394759,0.00021917,2]
[329552893,1718431853174,-500.8517388,0.00021917,2]
[329552895,1718431853189,-500.0,0.00021917,2]
[329552897,1718431853207,-500.0,0.00021917,2]
[329552899,1718431853223,-500.0,0.00021917,2]
[329552902,1718431853254,-263.62990129,0.00021917,2]
[329552904,1718431853294,-500.0,0.00021917,2]
[329552905,1718431853308,-500.0,0.00021917,2]
[329552907,1718431853323,-543.14193894,0.00021917,2]
[329552909,1718431853352,-500.0,0.00021917,2]
[329552911,1718431853371,-500.0,0.00021917,2]
[329552913,1718431853388,-500.0,0.00021917,2]
[329552916,1718431853420,-500.0,0.00021917,2]
[329552917,1718431853447,-500.0,0.00021917,2]
[329552919,1718431853465,-500.0,0.00021917,2]
[329552921,1718431853479,-500.0,0.00021917,2]
[329552924,1718431853506,-500.0,0.00021917,2]
[329552926,1718431853526,-500.0,0.00021917,2]
[329552928,1718431853539,-501.03543973,0.00021917,2]
[329552930,1718431853561,-500.0,0.00021917,2]
[329552932,1718431853573,-500.0,0.00021917,2]
[329552935,1718431853600,-500.0,0.00021917,2]
[329552938,1718431853660,-500.0,0.00021917,2]
[329552940,1718431853701,-547.3803533,0.00021917,2]
[329552942,1718431853715,-500.0,0.00021917,2]
[329552945,1718431853734,-263.60163023,0.00021917,2]
[329552947,1718431853754,-500.0,0.00021917,2]
[329552949,1718431853770,-500.0,0.00021917,2]
[329552951,1718431853794,-500.0,0.00021917,2]
[329552952,1718431853807,-500.0,0.00021917,2]
[329552955,1718431853822,-500.0,0.00021917,2]
[329552956,1718431853834,-310.89765695,0.00021917,2]
[329552958,1718431853853,-500.0,0.00021917,2]
[329552960,1718431853868,-484.5,0.00021917,2]
[329552962,1718431853890,-340.52076322,0.00021917,2]
[329552964,1718431853940,-384.23368629,0.00021917,2]
[329552970,1718431854055,-115.76631371,0.00021917,2]
[329552972,1718431854068,-500.0,0.00021917,2]
[329552974,1718431854084,-500.0,0.00021917,2]
[329552976,1718431854103,-500.0,0.00021917,2]
[329552978,1718431854127,-500.0,0.00021917,2]
[329552979,1718431854146,-500.0,0.00021917,2]
[329552981,1718431854174,-500.0,0.00021917,2]
[329552984,1718431854207,-500.0,0.00021917,2]
[329552986,1718431854222,-500.0,0.00021917,2]
[329552988,1718431854233,-427.59834512,0.00021917,2]
[329552990,1718431854256,-500.0,0.00021917,2]
[329552993,1718431854277,-500.0,0.00021917,2]
[329552996,1718431854325,-500.0,0.00021917,2]
[329552998,1718431854356,-500.0,0.00021917,2]
[329553000,1718431854370,-500.0,0.00021917,2]
[329553003,1718431854396,-957.46,0.00021917,2]
[329553004,1718431854409,-500.0,0.00021917,2]
[329553006,1718431854432,-500.0,0.00021917,2]
[329553008,1718431854453,-500.0,0.00021917,2]
[329553010,1718431854465,-250.0,0.00021917,2]
[329553012,1718431854479,-500.0,0.00021917,2]
[329553013,1718431854498,-500.0,0.00021917,2]
[329553015,1718431854509,-500.0,0.00021917,2]
[329553017,1718431854525,-500.0,0.00021917,2]
[329553019,1718431854547,-500.0,0.00021917,2]
[329553021,1718431854570,-500.0,0.00021917,2]
[329553024,1718431854596,-501.38571725,0.00021917,2]
[329553032,1718431854616,-500.0,0.00021917,2]
[329553034,1718431854773,-500.0,0.00021917,2]
[329553036,1718431854785,-500.0,0.00021917,2]
[329553038,1718431854798,-500.0,0.00021917,2]
[329553040,1718431854836,-500.0,0.00021917,2]
[329553042,1718431854851,-500.0,0.00021917,2]
[329553043,1718431854866,-500.0,0.00021917,2]
[329553046,1718431854897,-500.0,0.00021917,2]
[329553047,1718431854909,-500.0,0.00021917,2]